[Event "*** Titled Tuesday Blitz"]
[Site "Chess.com"]
[Date "2018.01.02"]
[Round "8"]
[White "MatthewG-p4p"]
[Black "Vrolijk"]
[Result "1/2-1/2"]
[WhiteElo "2598"]
[BlackElo "2447"]
[TimeControl "180+2"]
[EndTime "14:50:23 PST"]
[Termination "Game drawn - insufficient material"]

1. c4 {[%clk 0:03:01]} 1... e5 {[%clk 0:02:58.5]} 2. Nc3 {[%clk 0:03:02]} 2...
Nf6 {[%clk 0:02:59.6]} 3. Nf3 {[%clk 0:03:02.4]} 3... Nc6 {[%clk 0:02:57.7]} 4.
e3 {[%clk 0:03:03.3]} 4... Bb4 {[%clk 0:02:57.6]} 5. Qc2 {[%clk 0:03:03.4]} 5...
Bxc3 {[%clk 0:02:21.4]} 6. Qxc3 {[%clk 0:03:04]} 6... Qe7 {[%clk 0:02:19.2]} 7.
d3 {[%clk 0:03:00.8]} 7... d5 {[%clk 0:02:19.7]} 8. cxd5 {[%clk 0:02:58.8]} 8...
Nxd5 {[%clk 0:02:21.6]} 9. Qb3 {[%clk 0:02:54.9]} 9... Nb6 {[%clk 0:02:21.5]}
10. a3 {[%clk 0:02:53.9]} 10... Be6 {[%clk 0:02:21.3]} 11. Qc2 {[%clk
0:02:55.2]} 11... O-O {[%clk 0:02:22.6]} 12. b3 {[%clk 0:02:55.4]} 12... a5
{[%clk 0:02:23]} 13. Bb2 {[%clk 0:02:56]} 13... f6 {[%clk 0:02:22.2]} 14. Be2
{[%clk 0:02:56.8]} 14... Rad8 {[%clk 0:02:22.6]} 15. O-O {[%clk 0:02:57.4]}
15... Qf7 {[%clk 0:02:21.1]} 16. Nd2 {[%clk 0:02:58.5]} 16... Nd5 {[%clk
0:02:10.8]} 17. Rac1 {[%clk 0:02:55.1]} 17... Qg6 {[%clk 0:02:10.2]} 18. Bf3
{[%clk 0:02:52]} 18... Nde7 {[%clk 0:02:09.2]} 19. Ne4 {[%clk 0:02:50.6]} 19...
Bd5 {[%clk 0:02:08.1]} 20. Kh1 {[%clk 0:02:47.7]} 20... f5 {[%clk 0:02:08.1]}
21. Nd2 {[%clk 0:02:44]} 21... Bxf3 {[%clk 0:02:04.4]} 22. Nxf3 {[%clk
0:02:40.2]} 22... Qe6 {[%clk 0:02:05.3]} 23. Rfd1 {[%clk 0:02:35.4]} 23... h6
{[%clk 0:02:03.4]} 24. d4 {[%clk 0:02:28.5]} 24... e4 {[%clk 0:01:57.7]} 25. Nd2
{[%clk 0:02:23.3]} 25... Nd5 {[%clk 0:01:56.7]} 26. Re1 {[%clk 0:02:15.8]} 26...
Rde8 {[%clk 0:01:56.5]} 27. Nc4 {[%clk 0:02:10.6]} 27... f4 {[%clk 0:01:54.6]}
28. exf4 {[%clk 0:02:11.2]} 28... Nxf4 {[%clk 0:01:55.4]} 29. Rcd1 {[%clk
0:02:07.5]} 29... Nd3 {[%clk 0:01:50.2]} 30. Re2 {[%clk 0:01:58.4]} 30... Qg4
{[%clk 0:01:47.7]} 31. Ne3 {[%clk 0:01:48.8]} 31... Qh5 {[%clk 0:01:43.3]} 32.
Rxd3 {[%clk 0:01:25.9]} 32... exd3 {[%clk 0:01:41.6]} 33. Qxd3 {[%clk
0:01:27.3]} 33... Kh8 {[%clk 0:01:20.8]} 34. h3 {[%clk 0:01:24.3]} 34... Ne7
{[%clk 0:01:15.7]} 35. d5 {[%clk 0:01:12.3]} 35... Nxd5 {[%clk 0:00:59.8]} 36.
Ng4 {[%clk 0:00:46.9]} 36... Nf4 {[%clk 0:00:33.7]} 37. Qd4 {[%clk 0:00:37.1]}
37... Qf7 {[%clk 0:00:21.4]} 38. Rxe8 {[%clk 0:00:32.7]} 38... Rxe8 {[%clk
0:00:23.3]} 39. Nxh6 {[%clk 0:00:34.2]} 39... Qf6 {[%clk 0:00:16.4]} 40. Qxf6
{[%clk 0:00:31]} 40... gxf6 {[%clk 0:00:18.3]} 41. Bxf6+ {[%clk 0:00:32.5]}
41... Kh7 {[%clk 0:00:18.1]} 42. Ng4 {[%clk 0:00:33.8]} 42... Re1+ {[%clk
0:00:19.2]} 43. Kh2 {[%clk 0:00:34.8]} 43... Rb1 {[%clk 0:00:20.6]} 44. Be5
{[%clk 0:00:27.1]} 44... Ne6 {[%clk 0:00:16.2]} 45. f4 {[%clk 0:00:22.9]} 45...
Rxb3 {[%clk 0:00:15.4]} 46. f5 {[%clk 0:00:23.7]} 46... Ng5 {[%clk 0:00:16.5]}
47. Bxc7 {[%clk 0:00:23.9]} 47... Rb5 {[%clk 0:00:16.2]} 48. f6 {[%clk
0:00:21.9]} 48... Rf5 {[%clk 0:00:17.7]} 49. Bd8 {[%clk 0:00:19.7]} 49... Ne6
{[%clk 0:00:17.3]} 50. Be7 {[%clk 0:00:20.8]} 50... b5 {[%clk 0:00:18.1]} 51.
Ne3 {[%clk 0:00:22]} 51... Rf2 {[%clk 0:00:18.3]} 52. Ng4 {[%clk 0:00:23]} 52...
Rf4 {[%clk 0:00:19]} 53. Ne5 {[%clk 0:00:23.2]} 53... b4 {[%clk 0:00:17.7]} 54.
axb4 {[%clk 0:00:24.5]} 54... axb4 {[%clk 0:00:19.6]} 55. Nd3 {[%clk 0:00:26.1]}
55... Rf5 {[%clk 0:00:18.7]} 56. Nxb4 {[%clk 0:00:26.4]} 56... Ng5 {[%clk
0:00:16.8]} 57. Nd3 {[%clk 0:00:26.8]} 57... Kg6 {[%clk 0:00:17.8]} 58. g4
{[%clk 0:00:27.3]} 58... Rf1 {[%clk 0:00:15.4]} 59. h4 {[%clk 0:00:27.6]} 59...
Nf3+ {[%clk 0:00:15]} 60. Kg3 {[%clk 0:00:29]} 60... Ng1 {[%clk 0:00:14.7]} 61.
Ne5+ {[%clk 0:00:29.6]} 61... Kh7 {[%clk 0:00:15.9]} 62. g5 {[%clk 0:00:31.1]}
62... Ne2+ {[%clk 0:00:17.3]} 63. Kg2 {[%clk 0:00:30.6]} 63... Rf4 {[%clk
0:00:17.6]} 64. h5 {[%clk 0:00:31]} 64... Rf5 {[%clk 0:00:17.7]} 65. g6+ {[%clk
0:00:32.2]} 65... Kh6 {[%clk 0:00:19.2]} 66. g7 {[%clk 0:00:25.2]} 66... Kh7
{[%clk 0:00:19.5]} 67. Ng4 {[%clk 0:00:19.4]} 67... Nf4+ {[%clk 0:00:18.9]} 68.
Kf3 {[%clk 0:00:18.6]} 68... Nxh5+ {[%clk 0:00:19.9]} 69. Ke3 {[%clk 0:00:20]}
69... Nxf6 {[%clk 0:00:16.5]} 70. Nxf6+ {[%clk 0:00:19.8]} 70... Kxg7 {[%clk
0:00:17.9]} 71. Ng4 {[%clk 0:00:21.6]} 71... Kf7 {[%clk 0:00:18.9]} 72. Bb4
{[%clk 0:00:22.1]} 72... Ke6 {[%clk 0:00:20.2]} 73. Bc3 {[%clk 0:00:23.4]} 73...
Rb5 {[%clk 0:00:21.5]} 74. Kd2 {[%clk 0:00:23.1]} 74... Rc5 {[%clk 0:00:22.3]}
75. Bd4 {[%clk 0:00:24.5]} 75... Kd5 {[%clk 0:00:22.8]} 76. Kd3 {[%clk
0:00:26.4]} 76... Ra5 {[%clk 0:00:21.9]} 77. Ne3+ {[%clk 0:00:28.3]} 77... Kc6
{[%clk 0:00:23]} 78. Nc4 {[%clk 0:00:29.6]} 78... Rh5 {[%clk 0:00:24.5]} 79. Be3
{[%clk 0:00:30.4]} 79... Rh3 {[%clk 0:00:24.7]} 80. Ne5+ {[%clk 0:00:31.9]}
80... Kd5 {[%clk 0:00:25]} 81. Nf7 {[%clk 0:00:33.1]} 81... Rxe3+ {[%clk
0:00:26.2]} 82. Kxe3 {[%clk 0:00:34.3]} 1/2-1/2

[Event "*** Titled Tuesday Blitz"]
[Site "Chess.com"]
[Date "2018.01.02"]
[Round "8"]
[White "GM_Huschenbeth"]
[Black "Marcus_Harvey"]
[Result "1-0"]
[WhiteElo "2484"]
[BlackElo "2539"]
[TimeControl "180+2"]
[EndTime "14:52:00 PST"]
[Termination "GM_Huschenbeth won by resignation"]

1. e4 {[%clk 0:03:01.9]} 1... e6 {[%clk 0:03:01.3]} 2. d4 {[%clk 0:03:02.5]}
2... d5 {[%clk 0:03:02.6]} 3. Nc3 {[%clk 0:03:04]} 3... Nf6 {[%clk 0:03:03.8]}
4. e5 {[%clk 0:03:05]} 4... Nfd7 {[%clk 0:03:05.2]} 5. f4 {[%clk 0:03:06.7]}
5... c5 {[%clk 0:03:06.8]} 6. Nf3 {[%clk 0:03:08.2]} 6... Nc6 {[%clk 0:03:08.4]}
7. Be3 {[%clk 0:03:09.2]} 7... a6 {[%clk 0:03:10.1]} 8. Qd2 {[%clk 0:03:08.6]}
8... Qb6 {[%clk 0:03:11.7]} 9. Na4 {[%clk 0:02:56.5]} 9... Qb4 {[%clk
0:03:12.8]} 10. Qxb4 {[%clk 0:02:22.8]} 10... Nxb4 {[%clk 0:03:14.7]} 11. Kd2
{[%clk 0:02:22.8]} 11... b6 {[%clk 0:03:16.1]} 12. Be2 {[%clk 0:02:18.5]} 12...
Bb7 {[%clk 0:03:15.9]} 13. Nc3 {[%clk 0:02:04]} 13... Be7 {[%clk 0:03:09.8]} 14.
Nd1 {[%clk 0:02:03.5]} 14... f5 {[%clk 0:02:58.7]} 15. c3 {[%clk 0:01:59.9]}
15... Nc6 {[%clk 0:02:57.5]} 16. Nf2 {[%clk 0:02:01.2]} 16... cxd4 {[%clk
0:02:55]} 17. cxd4 {[%clk 0:01:59.7]} 17... Rc8 {[%clk 0:02:49.4]} 18. h3 {[%clk
0:01:48.1]} 18... Na5 {[%clk 0:02:48.4]} 19. b3 {[%clk 0:01:39.7]} 19... Bb4+
{[%clk 0:02:41.7]} 20. Kd1 {[%clk 0:01:40.8]} 20... O-O {[%clk 0:02:35.8]} 21.
Rc1 {[%clk 0:01:33.3]} 21... Ba3 {[%clk 0:02:21.7]} 22. Rxc8 {[%clk 0:01:32.6]}
22... Rxc8 {[%clk 0:02:23.6]} 23. g4 {[%clk 0:01:31.8]} 23... g6 {[%clk
0:02:24.3]} 24. h4 {[%clk 0:01:25.7]} 24... Nc6 {[%clk 0:01:58.8]} 25. h5 {[%clk
0:01:15.2]} 25... Nb4 {[%clk 0:01:58.6]} 26. hxg6 {[%clk 0:01:07.3]} 26... hxg6
{[%clk 0:01:58.9]} 27. gxf5 {[%clk 0:01:04.5]} 27... gxf5 {[%clk 0:01:59.3]} 28.
Ng5 {[%clk 0:00:45.7]} 28... Nxa2 {[%clk 0:01:25.8]} 29. Bh5 {[%clk 0:00:45.4]}
29... Nc3+ {[%clk 0:01:21.6]} 30. Ke1 {[%clk 0:00:43.3]} 30... Kf8 {[%clk
0:00:59.9]} 31. Bf7 {[%clk 0:00:38.3]} 31... Bb4 {[%clk 0:00:47.2]} 32. Kf1
{[%clk 0:00:38.2]} 32... Ke7 {[%clk 0:00:11]} 33. Bxe6 {[%clk 0:00:37.8]} 33...
Nf8 {[%clk 0:00:10.7]} 34. Bxf5 {[%clk 0:00:30.1]} 34... Rc6 {[%clk 0:00:10.3]}
35. Bd3 {[%clk 0:00:22.3]} 35... Bc8 {[%clk 0:00:08.4]} 36. f5 {[%clk
0:00:23.3]} 36... b5 {[%clk 0:00:07.6]} 37. f6+ {[%clk 0:00:23.8]} 37... Ke8
{[%clk 0:00:09]} 38. Rh8 {[%clk 0:00:24.1]} 38... Na2 {[%clk 0:00:07]} 39. Bg6+
{[%clk 0:00:24.8]} 39... Kd8 {[%clk 0:00:08.3]} 40. Rxf8+ {[%clk 0:00:26.4]}
40... Bxf8 {[%clk 0:00:08.6]} 41. Nh7 {[%clk 0:00:23.8]} 41... Bb4 {[%clk
0:00:08.2]} 42. Bg5 {[%clk 0:00:22.7]} 42... Kc7 {[%clk 0:00:09.4]} 43. Nd3
{[%clk 0:00:18.7]} 43... Ba3 {[%clk 0:00:08.3]} 44. Ke2 {[%clk 0:00:14.7]} 44...
Bg4+ {[%clk 0:00:08.5]} 45. Ke3 {[%clk 0:00:15.7]} 45... Nb4 {[%clk 0:00:09.9]}
46. Nf4 {[%clk 0:00:15.5]} 46... Nc2+ {[%clk 0:00:10.1]} 47. Bxc2 {[%clk
0:00:15.9]} 47... Rxc2 {[%clk 0:00:12]} 48. Nxd5+ {[%clk 0:00:17.3]} 48... Kc6
{[%clk 0:00:13.6]} 49. Ne7+ {[%clk 0:00:16.7]} 49... Kb7 {[%clk 0:00:15.1]} 50.
f7 {[%clk 0:00:17.5]} 50... Bc1+ {[%clk 0:00:11.2]} 51. Kd3 {[%clk 0:00:12.8]}
51... Rf2 {[%clk 0:00:12.4]} 52. Bf6 {[%clk 0:00:07.3]} 52... Bh6 {[%clk
0:00:08]} 53. Ke4 {[%clk 0:00:05.4]} 53... Bf3+ {[%clk 0:00:06.9]} 54. Kf5
{[%clk 0:00:04]} 54... Bd5+ {[%clk 0:00:06.4]} 55. Kg6 {[%clk 0:00:04.1]} 55...
Bxf7+ {[%clk 0:00:07.1]} 56. Kxf7 {[%clk 0:00:05.6]} 56... Be3 {[%clk
0:00:08.2]} 57. d5 {[%clk 0:00:06.7]} 57... a5 {[%clk 0:00:09.8]} 58. d6 {[%clk
0:00:07.9]} 58... a4 {[%clk 0:00:11.3]} 59. Nd5 {[%clk 0:00:07.6]} 59... axb3
{[%clk 0:00:11.1]} 60. d7 {[%clk 0:00:07.6]} 60... Bb6 {[%clk 0:00:12.1]} 61.
Nxb6 {[%clk 0:00:08.4]} 61... b2 {[%clk 0:00:13.2]} 62. d8=Q {[%clk 0:00:08.9]}
62... b1=Q {[%clk 0:00:13.1]} 63. Ng5 {[%clk 0:00:08.2]} 63... Qb3+ {[%clk
0:00:10.3]} 64. Nd5 {[%clk 0:00:08.9]} 64... Rd2 {[%clk 0:00:09.3]} 65. Qb6+
{[%clk 0:00:09.1]} 65... Ka8 {[%clk 0:00:09.6]} 66. Qc6+ {[%clk 0:00:10]} 66...
Ka7 {[%clk 0:00:09.5]} 67. Qc7+ {[%clk 0:00:08.5]} 67... Ka8 {[%clk 0:00:10.9]}
68. Qd8+ {[%clk 0:00:08.9]} 68... Kb7 {[%clk 0:00:11.7]} 69. Qd7+ {[%clk
0:00:10]} 69... Kb8 {[%clk 0:00:12.4]} 70. Ne6 {[%clk 0:00:09.7]} 70... Qxd5
{[%clk 0:00:12.6]} 71. Qc7+ {[%clk 0:00:08.4]} 71... Ka8 {[%clk 0:00:13.9]} 72.
Ke7 {[%clk 0:00:09.9]} 72... b4 {[%clk 0:00:12.2]} 73. Qc8+ {[%clk 0:00:07.2]}
73... Ka7 {[%clk 0:00:13.5]} 74. Bg5 {[%clk 0:00:07.1]} 74... Rd3 {[%clk
0:00:13.4]} 75. Bh4 {[%clk 0:00:07]} 75... Rd2 {[%clk 0:00:11.2]} 76. Qc7+
{[%clk 0:00:06.5]} 76... Ka6 {[%clk 0:00:11.3]} 77. Bg5 {[%clk 0:00:04.1]} 77...
Rd1 {[%clk 0:00:11]} 78. Qc8+ {[%clk 0:00:02.7]} 78... Kb5 {[%clk 0:00:12.1]}
79. Qb8+ {[%clk 0:00:03.8]} 79... Ka4 {[%clk 0:00:13.2]} 80. Qa7+ {[%clk
0:00:04.7]} 80... Kb3 {[%clk 0:00:14.6]} 81. Qf2 {[%clk 0:00:06]} 81... Rd3
{[%clk 0:00:13.8]} 82. Nc5+ {[%clk 0:00:06.5]} 82... Kc4 {[%clk 0:00:13.3]} 83.
Nxd3 {[%clk 0:00:08.4]} 83... Qxd3 {[%clk 0:00:14.6]} 84. e6 {[%clk 0:00:09.4]}
84... b3 {[%clk 0:00:14.7]} 85. Bf6 {[%clk 0:00:10.8]} 85... Qh7+ {[%clk
0:00:12.9]} 86. Kd6 {[%clk 0:00:11.6]} 86... Qd3+ {[%clk 0:00:13.9]} 87. Ke7
{[%clk 0:00:11.2]} 87... Qh7+ {[%clk 0:00:14.7]} 88. Kf8 {[%clk 0:00:12.3]}
88... Qh6+ {[%clk 0:00:14.6]} 89. Kf7 {[%clk 0:00:13.5]} 89... Qh7+ {[%clk
0:00:15.8]} 90. Bg7 {[%clk 0:00:14.6]} 90... Qh5+ {[%clk 0:00:16.8]} 91. Kf8
{[%clk 0:00:15]} 91... Qd5 {[%clk 0:00:13.1]} 92. e7 {[%clk 0:00:14.8]} 92...
Qd6 {[%clk 0:00:14.6]} 93. Qf1+ {[%clk 0:00:13.2]} 93... Kb4 {[%clk 0:00:14.7]}
94. Qe1+ {[%clk 0:00:14.2]} 94... Kc4 {[%clk 0:00:09.9]} 95. Qe4+ {[%clk
0:00:14.8]} 95... Kb5 {[%clk 0:00:10.5]} 96. Qe5+ {[%clk 0:00:16.1]} 96... Qc5
{[%clk 0:00:09.8]} 97. Qxc5+ {[%clk 0:00:12.7]} 1-0

[Event "*** Titled Tuesday Blitz"]
[Site "Chess.com"]
[Date "2018.01.02"]
[Round "9"]
[White "rasool78"]
[Black "AndrewDGreen"]
[Result "1-0"]
[WhiteElo "2317"]
[BlackElo "2123"]
[TimeControl "180+2"]
[EndTime "14:55:05 PST"]
[Termination "rasool78 won by resignation"]

1. e4 {[%clk 0:03:01.9]} 1... Nf6 {[%clk 0:03:00.1]} 2. e5 {[%clk 0:02:58]} 2...
Nd5 {[%clk 0:03:01.3]} 3. c4 {[%clk 0:02:59.5]} 3... Nb6 {[%clk 0:03:02.1]} 4.
c5 {[%clk 0:03:00.9]} 4... Nd5 {[%clk 0:03:03.1]} 5. Nc3 {[%clk 0:03:02.4]} 5...
e6 {[%clk 0:03:04.1]} 6. d4 {[%clk 0:02:57.4]} 6... b6 {[%clk 0:03:04.3]} 7.
cxb6 {[%clk 0:02:57.8]} 7... axb6 {[%clk 0:03:05.3]} 8. Nf3 {[%clk 0:02:54.6]}
8... Ba6 {[%clk 0:03:05.7]} 9. Bxa6 {[%clk 0:02:53.7]} 9... Nxa6 {[%clk
0:03:06.4]} 10. O-O {[%clk 0:02:48.4]} 10... Nxc3 {[%clk 0:02:52.4]} 11. bxc3
{[%clk 0:02:47.7]} 11... d5 {[%clk 0:02:53.1]} 12. Ng5 {[%clk 0:02:43.5]} 12...
Be7 {[%clk 0:02:47.7]} 13. Qh5 {[%clk 0:02:37.4]} 13... g6 {[%clk 0:02:42]} 14.
Qh6 {[%clk 0:02:35.5]} 14... Bf8 {[%clk 0:02:41.5]} 15. Qh3 {[%clk 0:02:32.2]}
15... h6 {[%clk 0:02:33.9]} 16. Nxe6 {[%clk 0:02:24]} 16... fxe6 {[%clk
0:02:33.3]} 17. Qxe6+ {[%clk 0:02:24.5]} 17... Qe7 {[%clk 0:02:33.3]} 18. Qc6+
{[%clk 0:02:24.6]} 18... Kf7 {[%clk 0:02:25.6]} 19. Qxa8 {[%clk 0:02:24.8]} 1-0

[Event "*** Titled Tuesday Blitz"]
[Site "Chess.com"]
[Date "2018.01.02"]
[Round "9"]
[White "NewBornNow"]
[Black "EndgameGrinder"]
[Result "0-1"]
[WhiteElo "2659"]
[BlackElo "2477"]
[TimeControl "180+2"]
[EndTime "14:55:44 PST"]
[Termination "EndgameGrinder won by resignation"]

1. e4 {[%clk 0:03:01.9]} 1... c5 {[%clk 0:03:01.2]} 2. Nf3 {[%clk 0:03:01.8]}
2... e6 {[%clk 0:03:02.5]} 3. d4 {[%clk 0:03:02.1]} 3... cxd4 {[%clk 0:03:04.4]}
4. Nxd4 {[%clk 0:03:03.8]} 4... Nc6 {[%clk 0:03:06]} 5. Nc3 {[%clk 0:03:04.8]}
5... Qc7 {[%clk 0:03:07.5]} 6. Be3 {[%clk 0:03:05.3]} 6... a6 {[%clk 0:03:09]}
7. Be2 {[%clk 0:03:06.4]} 7... Nf6 {[%clk 0:03:10.4]} 8. a3 {[%clk 0:03:07.6]}
8... b5 {[%clk 0:03:10.2]} 9. Nxc6 {[%clk 0:03:01.8]} 9... dxc6 {[%clk
0:03:11.4]} 10. f4 {[%clk 0:03:01.1]} 10... e5 {[%clk 0:03:10]} 11. O-O {[%clk
0:02:58.2]} 11... Bd6 {[%clk 0:03:04.7]} 12. f5 {[%clk 0:02:56.8]} 12... Bb7
{[%clk 0:03:04.2]} 13. g4 {[%clk 0:02:44.5]} 13... c5 {[%clk 0:03:02.2]} 14.
Bxb5+ {[%clk 0:02:42.8]} 14... Ke7 {[%clk 0:02:37.1]} 15. Bc4 {[%clk 0:02:39.4]}
15... Nxe4 {[%clk 0:01:38.2]} 16. Nd5+ {[%clk 0:02:38.9]} 16... Bxd5 {[%clk
0:01:39.5]} 17. Qxd5 {[%clk 0:02:39.8]} 17... Nf6 {[%clk 0:01:41.1]} 18. Qxf7+
{[%clk 0:02:37.5]} 18... Kd8 {[%clk 0:01:42.5]} 19. Qd5 {[%clk 0:02:35.5]} 19...
Nxd5 {[%clk 0:01:42.8]} 20. Bxd5 {[%clk 0:02:35.5]} 20... Rb8 {[%clk 0:01:43.5]}
0-1

[Event "*** Titled Tuesday Blitz"]
[Site "Chess.com"]
[Date "2018.01.02"]
[Round "9"]
[White "julinha97"]
[Black "Laico"]
[Result "0-1"]
[WhiteElo "2191"]
[BlackElo "2158"]
[TimeControl "180+2"]
[EndTime "14:56:04 PST"]
[Termination "Laico won by resignation"]

1. e4 {[%clk 0:03:01.9]} 1... e6 {[%clk 0:02:59.1]} 2. d4 {[%clk 0:03:02.4]}
2... d5 {[%clk 0:02:59.8]} 3. Nc3 {[%clk 0:03:03.8]} 3... Nf6 {[%clk 0:03:00.6]}
4. e5 {[%clk 0:03:05]} 4... Nfd7 {[%clk 0:03:01.7]} 5. f4 {[%clk 0:03:05.6]}
5... c5 {[%clk 0:03:02.7]} 6. Nf3 {[%clk 0:03:07.2]} 6... Nc6 {[%clk 0:03:03.9]}
7. Be3 {[%clk 0:03:08.7]} 7... cxd4 {[%clk 0:03:05.1]} 8. Nxd4 {[%clk
0:03:08.3]} 8... Bc5 {[%clk 0:03:06.4]} 9. Qd2 {[%clk 0:03:04.2]} 9... O-O
{[%clk 0:03:07]} 10. O-O-O {[%clk 0:03:03.9]} 10... a6 {[%clk 0:03:08]} 11. g4
{[%clk 0:03:01.2]} 11... Nxd4 {[%clk 0:03:07.4]} 12. Bxd4 {[%clk 0:03:01.9]}
12... b5 {[%clk 0:03:08.3]} 13. Kb1 {[%clk 0:02:55]} 13... b4 {[%clk 0:03:04.5]}
14. Ne2 {[%clk 0:02:52.9]} 14... a5 {[%clk 0:03:05.5]} 15. f5 {[%clk 0:02:52.1]}
15... Bxd4 {[%clk 0:03:03]} 16. Qxd4 {[%clk 0:02:51.1]} 16... Qc7 {[%clk
0:03:04.1]} 17. fxe6 {[%clk 0:02:27.3]} 17... fxe6 {[%clk 0:03:06]} 18. Nf4
{[%clk 0:02:25.8]} 18... Qxe5 {[%clk 0:03:03.1]} 19. Qxe5 {[%clk 0:02:23.3]}
19... Nxe5 {[%clk 0:03:05]} 20. Nd3 {[%clk 0:02:14.7]} 20... Nxg4 {[%clk
0:03:02.3]} 21. Bh3 {[%clk 0:02:16]} 21... Nf2 {[%clk 0:02:53.5]} 22. Nxf2
{[%clk 0:02:15.5]} 22... Rxf2 {[%clk 0:02:55.4]} 23. Rhe1 {[%clk 0:02:16.1]}
23... Kf7 {[%clk 0:02:46.3]} 24. Rf1 {[%clk 0:02:15.8]} 24... Rxf1 {[%clk
0:02:45.8]} 25. Rxf1+ {[%clk 0:02:16.6]} 25... Ke7 {[%clk 0:02:46.9]} 26. Rg1
{[%clk 0:02:16.8]} 26... g6 {[%clk 0:02:46.6]} 27. Bf1 {[%clk 0:02:14.2]} 27...
e5 {[%clk 0:02:46.6]} 28. h4 {[%clk 0:02:14]} 28... Ba6 {[%clk 0:02:45.1]} 29.
Bg2 {[%clk 0:02:12.8]} 29... e4 {[%clk 0:02:45.5]} 30. h5 {[%clk 0:02:14]} 30...
gxh5 {[%clk 0:02:44.7]} 31. Rh1 {[%clk 0:02:12]} 31... Be2 {[%clk 0:02:43.6]}
0-1

[Event "*** Titled Tuesday Blitz"]
[Site "Chess.com"]
[Date "2018.01.02"]
[Round "9"]
[White "VeraNebolsina"]
[Black "SergeiAza"]
[Result "0-1"]
[WhiteElo "2269"]
[BlackElo "2654"]
[TimeControl "180+2"]
[EndTime "14:57:53 PST"]
[Termination "SergeiAza won by resignation"]

1. e4 {[%clk 0:03:01.9]} 1... c5 {[%clk 0:03:00.3]} 2. Nf3 {[%clk 0:03:01.8]}
2... Nc6 {[%clk 0:03:01.9]} 3. Bb5 {[%clk 0:02:53.3]} 3... e6 {[%clk 0:03:01]}
4. O-O {[%clk 0:02:51.3]} 4... Nge7 {[%clk 0:03:01.9]} 5. c3 {[%clk 0:02:46.9]}
5... a6 {[%clk 0:03:01.9]} 6. Ba4 {[%clk 0:02:48]} 6... b5 {[%clk 0:03:02.7]} 7.
Bc2 {[%clk 0:02:49]} 7... Bb7 {[%clk 0:03:04.2]} 8. Re1 {[%clk 0:02:49.8]} 8...
Ng6 {[%clk 0:03:00.6]} 9. d4 {[%clk 0:02:47.1]} 9... cxd4 {[%clk 0:02:59.4]} 10.
cxd4 {[%clk 0:02:16.3]} 10... Rc8 {[%clk 0:03:00.1]} 11. a3 {[%clk 0:02:14.2]}
11... Qc7 {[%clk 0:02:58.8]} 12. Nc3 {[%clk 0:02:12.5]} 12... Be7 {[%clk
0:02:52.1]} 13. Bg5 {[%clk 0:01:37]} 13... O-O {[%clk 0:02:46.3]} 14. Bxe7
{[%clk 0:01:17.1]} 14... Ncxe7 {[%clk 0:02:34.5]} 15. Rc1 {[%clk 0:01:04.2]}
15... Qb6 {[%clk 0:02:35.5]} 16. Qd3 {[%clk 0:01:00.3]} 16... f5 {[%clk
0:02:33.3]} 17. exf5 {[%clk 0:00:31.5]} 17... Nxf5 {[%clk 0:02:34.1]} 18. Qd2
{[%clk 0:00:22.7]} 18... Bxf3 {[%clk 0:02:32.1]} 19. gxf3 {[%clk 0:00:23.8]}
19... Nxd4 {[%clk 0:02:29.8]} 20. Be4 {[%clk 0:00:19]} 20... Nh4 {[%clk
0:02:23.1]} 21. Kh1 {[%clk 0:00:17.4]} 21... Ndxf3 {[%clk 0:02:21]} 22. Bxf3
{[%clk 0:00:09.5]} 22... Nxf3 {[%clk 0:02:20]} 23. Qxd7 {[%clk 0:00:10]} 23...
Nxe1 {[%clk 0:02:16.9]} 24. Rxe1 {[%clk 0:00:11.5]} 24... Qxf2 {[%clk
0:02:15.6]} 25. Qxe6+ {[%clk 0:00:12.4]} 25... Kh8 {[%clk 0:02:15.7]} 0-1